{"text_format":"1","workbook":"xlsx","n_sheets":2,"sheets":["Bila D","Bilanzanalyse"],"not_rendered":{"charts":0,"images":0,"macros":0,"external_links":0,"defined_names":4,"comments":0,"pivot_tables":0},"unopened":[],"bounds":{"document_bytes":16777216,"sheet_cells":100000,"rows_first":2000,"rows_last":500,"rows_between":2000,"halvings":0,"cell_chars":16384,"cell_head_chars":4096},"cells_cut":0,"cells_raw":0,"read":"whole","date_system":"1900"}

{"sheet":"Bila D","index":0,"n_rows":79,"n_cols":13,"rows_kept":79,"cut":false,"hidden":false,"merged":[[1,1,1,13],[2,0,2,13],[3,0,3,13]]}
[]
[]
["Carl Zeiss Meditec AG"]
["Konzern-Bilanz (IFRS) zum 31.12.2015"]
[]
[null,null,null,null,null,null," ",null,"Anhang",null,"2015-12-31",null,"2015-09-30"]
[null,null,null,null,null,null,null,null,null,null,"Tsd. €",null,"Tsd. €"]
[]
[null,"AKTIVA"]
[null,"Langfristige Vermögenswerte"]
[null,"Geschäfts- oder Firmenwert",null,null,null,null,null,null,"(2e) (10)",null,166119,null,164345]
[null,"Sonstige immaterielle Vermögenswerte",null,null,null,null,null,null,"(2f) (11)",null,46107,null,45365]
[null,"Sachanlagen",null,null,null,null,null,null,"(2g) (12)",null,66960,null,67381]
[null,"At-Equity Beteiligungen",null,null,null,null,null,null,"(15)",null,0,null,0]
[null,"Ausleihungen an At-Equity Beteiligungen",null,null,null,null,null,null,null,null,0,null,0]
[null,"Sonstige Ausleihungen",null,null,null,null,null,null,"(27)",null,2082,null,1349]
[null,"Beteiligungen",null,null,null,null,null,null,null,null,124,null,124]
[null,"Latente Ertragsteuern",null,null,null,null,null,null,"(2i) (13)",null,75300,null,72985]
[null,"Langfristige Forderungen aus Lieferungen und Leistungen",null,null,null,null,null,null,"(16)",null,9284,null,8919]
[null,"Sonstige langfristige Vermögenswerte",null,null,null,null,null,null,"(2h) (14)",null,2452,null,2524]
[]
[null,null,null,null,null,null,null,null,null,null,{"$f":"SUM(K8:K21)","v":368428},null,{"$f":"SUM(M8:M21)","v":362992}]
[null,"Kurzfristige Vermögenswerte"]
[null,"Vorräte",null,null,null,null,null,null,"(2j) (15)",null,204532,null,189411]
[null,"Forderungen aus Lieferungen und Leistungen",null,null,null,null,null,null,"(16)",null,163614,null,184817]
[null,"Forderungen gegen nahe stehende Unternehmen",null,null,null,null,null,null,"(2t) (32)",null,70536,null,58900]
[null,"Forderungen aus Finanzausgleich",null,null,null,null,null,null,"(2t) (32)",null,296435,null,301412]
[null,"Steuererstattungsansprüche",null,null,null,null,null,null,null,null,2938,null,2224]
[null,"Sonstige kurzfristige finanzielle Vermögenswerte",null,null,null,null,null,null,"(2h) (17)",null,7210,null,7336]
[null,"Sonstige kurzfristige nicht-finanzielle Vermögenswerte",null,null,null,null,null,null,"(18)",null,19006,null,19157]
[null,"Wertpapiere",null,null,null,null,null,null,"(2i)"]
[null,"Liquide Mittel mit Verfügungsbeschränkung",null,null,null,null,null,null,"(12)"]
[null,"Zahlungsmittel und Zahlungsmitteläquivalente",null,null,null,null,null,null,"(2l) (19)",null,16132,null,13041]
[]
[null,null,null,null,null,null,null,null,null,null,{"$f":"SUM(K24:K33)","v":780403},null,{"$f":"SUM(M24:M33)","v":776298}]
[null,null,null,null,null,null,null,null,null,null,{"$f":"+K35+K22","v":1148831},null,{"$f":"+M35+M22","v":1139290}]
[]
[null,"PASSIVA"]
[null,"Eigenkapital"]
[null,"Gezeichnetes Kapital",null,null,null,null,null,null,"(20)",null,81310,null,81310]
[null,"Kapitalrücklage",null,null,null,null,null,null,"(20)",null,313863,null,313863]
[null,"Gewinnrücklagen",null,null,null,null,null,null,"(20)",null,407624,null,390903]
[null,"Sonstige Bestandteile des Eigenkapitals",null,null,null,null,null,null,"(2m) (20)",null,-26881,null,-32218]
[]
[null,"Eigenkapital ohne Anteile nicht-beherrschender Gesellschafter",null,null,null,null,null,null,null,null,{"$f":"SUM(K40:K43)","v":775916},null,{"$f":"SUM(M40:M43)","v":753858}]
[null,"Ausgleichsposten für Anteile nicht-beherrschender Gesellschafter",null,null,null,null,null,null,"(20)",null,45128,null,43592]
[]
[null,null,null,null,null,null,null,null,null,null,{"$f":"SUM(K45:K46)","v":821044},null,{"$f":"SUM(M45:M46)","v":797450}]
[null,"Langfristige Schulden"]
[null,"Pensionsrückstellungen und ähnliche Verpflichtungen",null,null,null,null,null,null,"(2n) (21)",null,68076,null,64865]
[null,"Andere langfristige Rückstellungen",null,null,null,null,null,null,"(2o) (22)",null,4605,null,4467]
[null,"Langfristige finanzielle Verbindlichkeiten",null,null,null,null,null,null,"(23)",null,1232,null,916]
[null,"Langfristige Leasingverbindlichkeiten",null,null,null,null,null,null,"(2k) (27)",null,8442,null,8929]
[null,"Langfristige Verbindlichkeiten aus Ertragsteuern"]
[null,"Sonstige langfristige nicht-finanzielle Verbindlichkeiten",null,null,null,null,null,null,null,null,6658,null,7490]
[null,"Latente Ertragsteuern",null,null,null,null,null,null,"(2i) (13)",null,11807,null,11783]
[]
[null,null,null,null,null,null,null,null,null,null,{"$f":"SUM(K50:K57)","v":100820},null,{"$f":"SUM(M50:M57)","v":98450}]
[null,"Kurzfristige Schulden"]
[null,"Kurzfristige Rückstellungen",null,null,null,null,null,null,"(2o) (22)",null,23791,null,24360]
[null,"Kurzfristige abgegrenzte Verbindlichkeiten",null,null,null,null,null,null,"(24)",null,64575,null,65447]
[null,"Kurzfristige finanzielle Verbindlichkeiten",null,null,null,null,null,null,"(2h)",null,11221,null,{"$f":"3218+489","v":3707}]
[null,"Kurzfristiger Anteil langfristiger finanzieller Verbindlichkeiten",null,null,null,null,null,null,"(23)"]
[null,"Kurzfristiger Anteil langfristiger Leasingverbindlichkeiten",null,null,null,null,null,null,"(2k) (27)",null,2909,null,2806]
[null,"Verbindlichkeiten aus Lieferungen und Leistungen",null,null,null,null,null,null,null,null,34980,null,42859]
[null,"Kurzfristige Verbindlichkeiten aus Ertragsteuern",null,null,null,null,null,null,null,null,5942,null,6214]
[null,"Verbindlichkeiten gegenüber nahe stehenden Unternehmen",null,null,null,null,null,null,"(2t) (32)",null,11140,null,23454]
[null,"Verbindlichkeiten aus Finanzausgleich",null,null,null,null,null,null,"(2t) (32)",null,34579,null,36043]
[null,"Sonstige kurzfristige nicht-finanzielle Verbindlichkeiten",null,null,null,null,null,null,"(25)",null,37830,null,38500]
[]
[null,null,null,null,null,null,null,null,null,null,{"$f":"SUM(K60:K69)","v":226967},null,{"$f":"SUM(M60:M69)","v":243390}]
[]
[null,null,null,null,null,null,null,null,null,null,{"$f":"+K71+K58+K48","v":1148831},null,{"$f":"+M71+M58+M48","v":1139290}]
[null,null,null,null,null,null,null,null,null,null,{"$f":"+K73-K36","v":0},null,{"$f":"+M73-M36","v":0}]
[]
[]
[]
[]
[null,"Der nachfolgende Konzernanhang ist integraler Bestandteil des ungeprüften Konzernabschlusses."]

{"sheet":"Bilanzanalyse","index":1,"n_rows":14,"n_cols":5,"rows_kept":14,"cut":false,"hidden":true,"merged":[[0,0,0,1]]}
["Abw. Dec./ Sep",null,"Begründung","davon\n erklärt","Differenz"]
[{"$f":"'Bila D'!#REF!","v":{"$error":"#REF!"}},"Geschäfts- oder Firmenwert","Zugang IMEX 7,432 Mio.",{"$f":"7432","v":7432},{"$f":"A2-D2","v":{"$error":"#REF!"}}]
[{"$f":"'Bila D'!#REF!","v":{"$error":"#REF!"}},"Immaterielle Vermögenswerte","Zugang IMEX 5,551 Mio."]
[{"$f":"'Bila D'!#REF!","v":{"$error":"#REF!"}},"Sachanlagen","Zugang CZM AG 4,0 Mio. vor Afa (hauptsächlich Olymp ca. 3,2 Mio.); Übernahme Mietgeräte bei CZM VG aus Umlaufvermögen (+1,2 Mio.)"]
[{"$f":"'Bila D'!#REF!","v":{"$error":"#REF!"}},"Forderungen aus Lieferungen und Leistungen","hierin enthalten 2,9 Mio. Alcon-Lizenzen, Cash-Zahlung erfolgt erst im Januar"]
[{"$f":"'Bila D'!#REF!","v":{"$error":"#REF!"}},"Forderungen gegen nahe stehende Unternehmen","v.a. Umsatzanstieg Q1 CZM AG (Umsatz je Quartal: GJ 10/11 --> 113 Mio., Q1 11/12 --> 141 Mio.)  "]
[{"$f":"'Bila D'!#REF!","v":{"$error":"#REF!"}},"Sonstige kurzfristige finanzielle Vermögenswerte","Anstieg aus CZM Inc. aufgrund der Umgliederung der Kreditkartenforderungen von kurzf. Nicht-finanz. Vw in kurzf. Finanz. Vermögenswerte (+1,3 Mio.). Anstieg CZM AG (+0,3 Mio.) für Zinsabgrenzungen (COBA + HVB)",{"$f":"1300+300","v":1600},{"$f":"A7-D7","v":{"$error":"#REF!"}}]
[{"$f":"'Bila D'!#REF!","v":{"$error":"#REF!"}},"Sonstige kurzfristige nicht-finanzielle Vermögenswerte","Kompensation des Umgliederungseffektes USA durch CZM F (+0,6 Mio., u.a. UST, ARAP), CZM AG (+0,4 Mio.) "]
[1207,"Andere langfristige Rückstellungen","IMEX earn out Anteil +2,218 Mio.; Kompensation durch CZM AG (-915 TEUR ATZ, -142 TEUR Verbrauch ERA RST und sonstiges)",{"$f":"(2.218-0.915-0.142)*1000","v":1161},46]
[{"$f":"'Bila D'!#REF!","v":{"$error":"#REF!"}},"Kurzfristige Rückstellungen","IMEX earn out Anteil +2,149 Mio., Abgrenzung KöSteuer +1,5 Mio. (CZM AG), RST für Gewährleistungen pauschal +0,55 Mio. (CZM AG), Konzernrückstellung Q1 für Projekttehmen +0,85 Mio., Auflösung RST für Bonuszahlung im Dezember + RST-Bildung für geschätzte Logistikosten (CZM Japan), Zuführung RST CZM Inc. für Ferien, Warenrückgabe und Gewährleistung",{"$f":"(2.149+1.5+0.55+0.85)*1000","v":5048.9999999999991},{"$error":"#REF!"}]
[{"$f":"'Bila D'!#REF!","v":{"$error":"#REF!"}},"Kurzfristige abgegrenzte Verbindlichkeiten","Auszahlung Renumeration für FY 10/11 CZM VG -0,8 Mio. (hier auch Reduzierung RST für ausstehende Rechnung enthalten) und USA -3,1 Mio. (u.a. MBO-Bonus, Super-Bonus); z.T. Kompensation/ Anstieg durch unterjährige Rechnungsabgrenzungen + Risiken CZM AG +1,36 Mio. (davon 0,6 Mio. Konzern-RST bzw. 0,3 Mio. CZM-Verbundene, die im Konzern wieder eliminiert werden); CZM SAS + FCI -04 Mio. Rückgang Personalverbindlichkeiten aufgrund erfolgter Bonuszahlung im Dez 11",{"$f":"(-0.8-3.1+1.36-0.3-0.4)*1000","v":-3239.9999999999995},{"$error":"#REF!"}]
[{"$f":"'Bila D'!#REF!","v":{"$error":"#REF!"}},"Kurzfristige finanzielle Verbindlichkeiten","Devisentermingeschäfte CZM AG +3,3 Mio. EUR, Reduzierung ausstehende Checks USA aufgrund von Lieferantenzahlungen -0,6 Mio.",{"$f":"(3.3-0.6)*1000","v":2699.9999999999995},{"$error":"#REF!"}]
[{"$f":"'Bila D'!#REF!","v":{"$error":"#REF!"}},"Verbindlichkeiten aus Lieferungen und Leistungen","CZM AG: Umstellung Lieferantenzahlungen auf tägliche Zahlungen nach Fälligkeit ab Q1 2012 (-3,9 Mio.)"]
[{"$f":"'Bila D'!#REF!","v":{"$error":"#REF!"}},"Sonstige kurzfristige nicht-finanzielle Verbindlichkeiten","CZM AG: Lohnsteuerverbindlichkeiten +2,0 Mio. (Prämienzahlung 31.12.) , Lizenzen Alcon +2,2 Mio. Erhaltene Anzahlungen -1,0 Mio.,\nCZM VG: Erhöhung \"erhaltene Anzahlungen\" und Lohnsteuerverbindlichkeiten zum 31.12. (+0,6 Mio.)\nCZM Inc: Service-RST (+0,5 Mio.), abgegrenzter Service-Ertrag (+0,4 Mio.)\nCZM Japan: Bonuszahlung Dez 11 (+0,4 Mio.), Kundenvorauszahlungen OPMI Lumera + Vario (+0,5 Mio.), U-Anteil soziale Sicherheit (+0,2 Mio.)\nCZM Spanien: abgegrenter Ertrag (+0,3 Mio.) ",{"$f":"(2+2.2-1+0.6+0.5+0.4+0.4+0.5+0.2+0.3)*1000","v":6100.0000000000018},{"$error":"#REF!"}]